Workbook

Sheet 表紙
A23: 2025年後期
A24: 折込プラス紙数表

Sheet 取扱基準
A2: 新聞折込広告取扱基準
A5: 当社は日本新聞協会の「折込広告の取扱基準」および、新聞社の「広告掲載基準」を参考として、折込広告取扱基準を設けております。
A7: つぎのような折込チラシはお引き受けできかねます。
A10: （1） 広告の内容がはっきりしないもの。および、広告主の所在地、事業所名、ＨＰアドレス等のいずれの記載もなく、広告責任者が明確でないもの。
A12: （2） 虚偽または誇大表現により、誤認されるおそれのあるもの。「日本一」「業界一」等の最高・最大級の表現、「絶対に」「確実に」等、商品の性能、
A14: 効能、効果を保証する断定的表現を用いたもの。
A16: （3） 景表法（不当景品付販売・不当表示の禁止）、不正競争防止法（コピー商品等の販売宣伝の禁止）などのほか、薬事法、医療法など法律や条例に
A18: 触れると思われるもの。（医薬品等を否定する内容や迷信に類する非科学的な内容のもの等）
A20: （4） 広告主の主観的意見、意図、表現がみられ、他者を誹謗中傷し、結果的に他者の名誉、信用を傷つけるおそれがある表現のもの。（誹謗中傷広告等）
A22: （5）「新聞業における公正競争規約」に触れる抽選券・金券などを刷り込んだもの、クーポン付き広告に関する規則、運営細則に違反するもの。
A24: （6） 政治問題や係争中（もしくは係争が予想される）問題について、一方的な主張を述べたものや、立候補が予定されている人物の名称を記載するなど、
A26: 選挙の事前運動と推量されるもの。
A28: （7） 煽情的な言葉や、写真、イラスト等を用いた表現で、暴力・犯罪を肯定・礼讃するなど、公序良俗に反する表現のもの。
A30: （8） 不動産広告で、広告主の名称、所在地、販売物件の所在地、地目、建築の可否、建ぺい率、交通アクセス、価格、管理費、維持費、販売条件、
A32: 宅建業法による免許証番号などが明確に記載されてないもの。
A34: （9） 貸金業広告で、貸金業規制法で定められている必要事項が表示されていないもの。 （商号、名称、氏名、登録番号、住所、利率等）
A36: （10）発行本社の新聞と混同、誤認されると思われるものや、他紙の社名、題字、記事、催事などが掲載、引用されているもの。
A38: その他、著作権・肖像権・商標権等を侵害するおそれのあるもの。
A40: （11）新聞社がそれぞれ定めた広告掲載基準に照らして、新聞折込が不適当と認められるもの。
A42: （12）新聞販売店の営業活動に支障をきたし、不利益になると判断されるもの。
A46: ■ 上記に限らず、判断がむずかしいものは、新聞発行本社、関係諸機関の指導・協議によって決めさせていただきます。
A48: なお、ご不明な点がございましたら当社へご相談下さい。

Sheet 災害時注意事項
A2: 大規模災害発生時における新聞折込広告の取り扱いについて
B5: 大規模な災害（大地震、津波、洪水、豪雪、大火災、大規模停電、火山噴火、原子力発電所の事故、新型感染症の大流行、他国からの攻撃など）に見舞われた
B7: 場合、中日新聞折込広告協同組合加盟の折込会社と中日新聞販売店は被災の状況を的確に判断し、折込広告をご愛読者へお届けするために全力を傾注します。
B9: しかしながらライフラインや通信網、輸送ルートなどが遮断され、被災地の新聞販売店や従業員に甚大な被害が及んだ場合は、クライアント様のご要望にお応
B11: えできない場合もあります。
B13: この様に事前の予測と回避が不可能な事態が発生し、折込会社と新聞販売店の努力にも関わらず指定日に新聞折込が出来なかった場合、折込会社と新聞販売店
B15: は一切の責任を負う事ができません。あらかじめご容赦いただきますようお願い申しあげます。
B24: 東海地震に関する「警戒宣言」発令時の折込広告の取り扱いについて
B26: 『大地震への警戒宣言や注意情報が発令された場合、新聞折込広告は中止になります』
B29: 愛知県、三重県の大部分の市町村と岐阜県中津川市は大規模地震対策措置法により、地震防災対策強化地域に指定されています。指定された地域で大規
B31: 模な地震の発生が予知されますと、内閣総理大臣から警戒宣言が発令されることになっています。また東海地震の前兆現象が高まると、気象庁から注意
B33: 情報が発表されます。
B35: 警戒宣言発令後は交通規制が始まり、指定地域内へ車両の進入が禁止されるほか、一般の道路も時速20㎞に速度制限されるため大渋滞の発生が予想され
B37: ます。
B39: このため東海地震の注意情報や警戒宣言の発令と同時に、お客様からお預かりした新聞折込広告の配送作業は「中止」させていただきます。配送中の車
B41: 両に対しては折込広告をお預かりした状態ですみやかに帰社するように指示しますが、交通事情と警察官の指示によって止むを得ず路上に駐車し避難し
B43: なければならない事も想定されます。
B45: すでに配送が完了した新聞折込広告も、新聞販売店での組み込み作業が「中止」になり新聞折込ができなくなります。幸い注意情報や警戒宣言が解除
B47: された場合も、混乱が解消するまでしばらくの間は新聞折込ができない場合もあります。
B49: 何卒ご理解とご了承をいただけますようお願いいたします。

Sheet 取扱事項
A2: 中日新聞専売店の「折込プラス」について
A7: 1. 配布日
A9: ・愛知県：毎月第2金曜日 第4金曜日
C10: ※未購読者への配布は当日とその翌日午前中が原則
A12: ・岐阜県：毎月第2金曜日（※1）
C13: ※未購読者への配布は当日とその翌日中が原則
C14: （※1）一部地域のみ実施となります。
C15: ※2025年8月は実施なし
A16: ・三重県：毎月第2金曜日（※1） 第4金曜日（※2）
C17: ※未購読者への配布は当日とその翌日中が原則
C18: （※1）一部地域のみ実施となります。 （※2）桑名市・員弁郡
A19: ※2025年8月は第4金曜日のみ,12月は第2金曜日のみの実施となります。
A22: 2. 配布物
A24: ・中日新聞折込広告取扱い基準を満たしたチラシ。
A28: 3. 配布方法
A30: ・中日新聞の購読者へは朝刊に折り込み。
A31: ・中日新聞未購読者へは情報紙とともに配布。
A35: 4. 定義に関して
A37: [折込プラス]配布定数＝折込定数＋未購読配布数
A38: ※全戸配布ではございませんのでご注意下さい。
A42: 5. 配布料金
A44: ・配布エリア地区の新聞折込チラシと同額を原則とする。
A45: ・特殊な形態、サイズは折込広告料金に準じ個別に検討する。
A49: 6. 取扱注意事項
A51: ・一部地域では折込プラスサービスは行っておりません。
A52: ・販売店個店単位で折込プラス定数を満たすことが原則となります.
A53: ・合売店では一部他紙一般紙にも折り込まれます。
A54: ・同じ配布エリアでも配布日によって情報紙が異なります。
A55: ・台風などの悪天候の場合、配布日は上記の限りではありません。

Sheet 三重県
A1: 折込日 | C1: 広告主 | G1: サイズ
C2: チラシ銘柄 | G2: 部数 | H2: =SUM(F27) -> 0
A3: 三重県 | I3: 2025年後期（9月1日以降）
A4: 地 区 | C4: 折込プラス部数 | E4: 依頼部数 | G4: 朝刊折込部数 | I4: 未購読部数
A5: 桑名市 | C5: =桑名市・桑名郡・いなべ市・員弁郡!F21 -> 50350 | E5: =桑名市・桑名郡・いなべ市・員弁郡!G21 -> 0 | F5: =IFERROR(SUM(E5)," ") -> 0 | G5: =桑名市・桑名郡・いなべ市・員弁郡!H21 -> 21150 | I5: =桑名市・桑名郡・いなべ市・員弁郡!I21 -> 29200
A6: 桑名郡 | C6: =桑名市・桑名郡・いなべ市・員弁郡!F27 -> 0 | E6: =桑名市・桑名郡・いなべ市・員弁郡!G27 -> 0 | F6: 0 | G6: =桑名市・桑名郡・いなべ市・員弁郡!H27 -> 0 | I6: =桑名市・桑名郡・いなべ市・員弁郡!I27 -> 0
A7: いなべ市 | C7: =桑名市・桑名郡・いなべ市・員弁郡!F38 -> 12300 | E7: =桑名市・桑名郡・いなべ市・員弁郡!G38 -> 0 | F7: 0 | G7: =桑名市・桑名郡・いなべ市・員弁郡!H38 -> 7500 | I7: =桑名市・桑名郡・いなべ市・員弁郡!I38 -> 4800
A8: 員弁郡 | C8: =桑名市・桑名郡・いなべ市・員弁郡!F48 -> 7900 | E8: =桑名市・桑名郡・いなべ市・員弁郡!G48 -> 0 | F8: 0 | G8: =桑名市・桑名郡・いなべ市・員弁郡!H48 -> 3200 | I8: =桑名市・桑名郡・いなべ市・員弁郡!I48 -> 4700
A9: 四日市市 | C9: =四日市市!F48 -> 111600 | E9: =四日市市!G48 -> 0 | F9: 0 | G9: =四日市市!H48 -> 41750 | I9: =四日市市!I48 -> 69850
A10: 三重郡 | C10: =三重郡・亀山市・鈴鹿市!F14 -> 20300 | E10: =三重郡・亀山市・鈴鹿市!G14 -> 0 | F10: 0 | G10: =三重郡・亀山市・鈴鹿市!H14 -> 9750 | I10: =三重郡・亀山市・鈴鹿市!I14 -> 10550
A11: 亀山市 | C11: =三重郡・亀山市・鈴鹿市!F25 -> 14550 | E11: =三重郡・亀山市・鈴鹿市!G25 -> 0 | F11: 0 | G11: =三重郡・亀山市・鈴鹿市!H25 -> 7050 | I11: =三重郡・亀山市・鈴鹿市!I25 -> 7500
A12: 鈴鹿市 | C12: =三重郡・亀山市・鈴鹿市!F48 -> 71050 | E12: =三重郡・亀山市・鈴鹿市!G48 -> 0 | F12: 0 | G12: =三重郡・亀山市・鈴鹿市!H48 -> 25700 | I12: =三重郡・亀山市・鈴鹿市!I48 -> 45350
A13: 津市 | C13: =津市!F48 -> 85950 | E13: =津市!G48 -> 0 | F13: 0 | G13: =津市!H48 -> 45700 | I13: =津市!I48 -> 40250
A14: 松阪市 | C14: =松阪市・多気郡!F31 -> 20900 | E14: =松阪市・多気郡!G31 -> 0 | F14: 0 | G14: =松阪市・多気郡!H31 -> 20900 | I14: =松阪市・多気郡!I31 -> 0
A15: 多気郡 | C15: =松阪市・多気郡!F48 -> 6050 | E15: =松阪市・多気郡!G48 -> 0 | F15: 0 | G15: =松阪市・多気郡!H48 -> 6050 | I15: =松阪市・多気郡!I48 -> 0
A16: 伊勢市 | C16: =伊勢市・度会郡!F26 -> 20500 | E16: =伊勢市・度会郡!G26 -> 0 | F16: 0 | G16: =伊勢市・度会郡!H26 -> 20500 | I16: =伊勢市・度会郡!I26 -> 0
A17: 度会郡 | C17: =伊勢市・度会郡!F48 -> 5450 | E17: =伊勢市・度会郡!G48 -> 0 | F17: 0 | G17: =伊勢市・度会郡!H48 -> 5450 | I17: =伊勢市・度会郡!I48 -> 0
A18: 鳥羽市 | C18: =鳥羽市・志摩市・尾鷲市!F16 -> 3200 | E18: =鳥羽市・志摩市・尾鷲市!G16 -> 0 | F18: 0 | G18: =鳥羽市・志摩市・尾鷲市!H16 -> 3200 | I18: =鳥羽市・志摩市・尾鷲市!I16 -> 0
A19: 志摩市 | C19: =鳥羽市・志摩市・尾鷲市!F33 -> 9000 | E19: =鳥羽市・志摩市・尾鷲市!G33 -> 0 | F19: 0 | G19: =鳥羽市・志摩市・尾鷲市!H33 -> 9000 | I19: =鳥羽市・志摩市・尾鷲市!I33 -> 0
A20: 尾鷲市 | C20: =鳥羽市・志摩市・尾鷲市!F48 -> 3650 | E20: =鳥羽市・志摩市・尾鷲市!G48 -> 0 | F20: 0 | G20: =鳥羽市・志摩市・尾鷲市!H48 -> 3650 | I20: =鳥羽市・志摩市・尾鷲市!I48 -> 0
A21: 熊野市 | C21: =熊野市・北牟婁郡・南牟婁郡!F17 -> 3450 | E21: =熊野市・北牟婁郡・南牟婁郡!G17 -> 0 | F21: 0 | G21: =熊野市・北牟婁郡・南牟婁郡!H17 -> 3450 | I21: =熊野市・北牟婁郡・南牟婁郡!I17 -> 0
A22: 北牟婁郡 | C22: =熊野市・北牟婁郡・南牟婁郡!F34 -> 4550 | E22: =熊野市・北牟婁郡・南牟婁郡!G34 -> 0 | F22: 0 | G22: =熊野市・北牟婁郡・南牟婁郡!H34 -> 4550 | I22: =熊野市・北牟婁郡・南牟婁郡!I34 -> 0
A23: 南牟婁郡 | C23: =熊野市・北牟婁郡・南牟婁郡!F48 -> 2200 | E23: =熊野市・北牟婁郡・南牟婁郡!G48 -> 0 | F23: 0 | G23: =熊野市・北牟婁郡・南牟婁郡!H48 -> 2200 | I23: =熊野市・北牟婁郡・南牟婁郡!I48 -> 0
A24: 伊賀市 | C24: =伊賀市・名張市・新宮市!F20 -> 8600 | E24: =伊賀市・名張市・新宮市!G20 -> 0 | F24: 0 | G24: =伊賀市・名張市・新宮市!H20 -> 8600 | I24: =伊賀市・名張市・新宮市!I20 -> 0
A25: 名張市 | C25: =伊賀市・名張市・新宮市!F32 -> 1700 | E25: =伊賀市・名張市・新宮市!G32 -> 0 | F25: 0 | G25: =伊賀市・名張市・新宮市!H32 -> 1700 | I25: =伊賀市・名張市・新宮市!I32 -> 0
A26: 新宮市 | C26: =伊賀市・名張市・新宮市!F48 -> 350 | E26: =伊賀市・名張市・新宮市!G48 -> 0 | F26: 0 | G26: =伊賀市・名張市・新宮市!H48 -> 350 | I26: =伊賀市・名張市・新宮市!I48 -> 0
A27: 合計 | C27: =SUM(C5:C26) -> 463600 | F27: =SUM(F5:F26) -> 0 | G27: =SUM(G5:G26) -> 251400 | I27: =SUM(I5:I26) -> 212200
I28: ㈱中日総合サービス

Sheet 桑名市・桑名郡・いなべ市・員弁郡
A1: 折込日 | E1: 広告主 | H1: サイズ
E2: チラシ銘柄 | H2: 部数 | I2: =SUM(A6,A24,A30,A41) -> 0
E3: ※2025年8月は第4金曜日のみ,12月は第2金曜日のみの実施となります。
A4: 地区 | D4: 店名 | F4: 折込プラス部ス | G4: 依頼部数 | H4: 朝刊折込部数 | I4: 未購読部数 | J4: 第2金曜日 | K4: 第4金曜日
A5: 桑名市 | D5: 240120Z01010 | E5: 桑名東部NS | F5: 6450 | H5: 2350 | I5: =F5-H5 -> 4100 | J5: ○ | K5: ○
A6: =SUM(G21) -> 0 | B6: ／ | C6: =SUM(F21) -> 50350 | D6: 240120Z01020 | E6: 桑名南部NS | F6: 9000 | H6: 3150 | I6: 5850 | J6: ○ | K6: ○
D7: 240120Z01090 | E7: 桑名中央NS | F7: 5000 | H7: 1750 | I7: 3250 | J7: ○ | K7: ○
D8: 240120Z01040 | E8: 桑名正和N | F8: 1700 | H8: 850 | I8: 850 | J8: ○ | K8: ○
D9: 240120Z01080 | E9: 桑名久米NS | F9: 2100 | H9: 1000 | I9: 1100 | J9: ○ | K9: ○
D10: 240120Z01060 | E10: 大山田団地NSI | F10: 9000 | H10: 3400 | I10: 5600 | J10: ○ | K10: ○
D11: 240120Z01110 | E11: 蓮花寺NSI | F11: 7350 | H11: 2900 | I11: 4450 | J11: ○ | K11: ○
D12: 240120Z01070 | E12: 深谷NAMYSI | F12: 1900 | H12: 850 | I12: 1050 | J12: ○ | K12: ○
D13: 240120Z01120 | E13: 多度NAMYSI | F13: 3700 | H13: 2100 | I13: 1600 | J13: ○ | K13: ○
D14: 240120Z01140 | E14: 桑名長島NAMSI | F14: 4150 | H14: 2800 | I14: 1350 | J14: ○ | K14: ○
E21: =CONCATENATE(FIXED(COUNTA(E5:E20),0,0)," 店") -> 10 店 | F21: =SUM(F5:F20) -> 50350 | G21: =SUM(G5:G20) -> 0 | H21: =SUM(H5:H20) -> 21150 | I21: =SUM(I5:I20) -> 29200
A23: 桑名郡 | E23: 木曽岬NＡＭSI
B24: ／
E27: =CONCATENATE(FIXED(COUNTA(E23:E26),0,0)," 店") -> 1 店 | F27: =SUM(F23:F26) -> 0 | G27: =SUM(G23:G26) -> 0 | H27: =SUM(H23:H26) -> 0
A29: いなべ市 | D29: 240140Z01060 | E29: 梅戸井NAMSI | F29: 1850 | H29: 800 | I29: =F29-H29 -> 1050 | J29: ○
A30: =SUM(G38) -> 0 | B30: ／ | C30: =SUM(F38) -> 12300 | D30: 240140Z01070 | E30: 石榑NAMI | F30: 2000 | H30: 1000 | I30: 1000 | J30: ○
D31: 240140Z01030 | E31: 員弁NAMSI | F31: 3000 | H31: 1450 | I31: 1550 | J31: ○
D32: 240140Z01040 | E32: 阿下喜NAMSI | F32: 1650 | H32: 1650 | I32: 0
D33: 240140Z01050 | E33: 員弁治田NAMSI | F33: 2350 | H33: 1150 | I33: 1200 | J33: ○
D34: 240140Z01080 | E34: 藤原NAMYSI | F34: 1450 | H34: 1450 | I34: 0
E38: =CONCATENATE(FIXED(COUNTA(E29:E37),0,0)," 店") -> 6 店 | F38: =SUM(F29:F37) -> 12300 | G38: =SUM(G29:G37) -> 0 | H38: =SUM(H29:H37) -> 7500 | I38: =SUM(I29:I37) -> 4800
A40: 員弁郡 | D40: 240121Z01020 | E40: 西桑名ネオポリスNSI | F40: 7900 | H40: 3200 | I40: =F40-H40 -> 4700 | J40: ○ | K40: ○
A41: =SUM(G48) -> 0 | B41: ／ | C41: =SUM(F48) -> 7900
E48: =CONCATENATE(FIXED(COUNTA(E40:E47),0,0)," 店") -> 1 店 | F48: =SUM(F40:F47) -> 7900 | G48: =SUM(G40:G47) -> 0 | H48: =SUM(H40:H47) -> 3200 | I48: =SUM(I40:I47) -> 4700
A49: 2025年後期（9月1日以降） | K49: ㈱中日総合サービス

Sheet 四日市市
A1: 折込日 | E1: 広告主 | H1: サイズ
E2: チラシ銘柄 | H2: 部数 | I2: =SUM(A6) -> 0
E3: ※2025年8月は第4金曜日のみ,12月は第2金曜日のみの実施となります。
A4: 地区 | D4: 店名 | F4: 折込プラス部ス | G4: 依頼部数 | H4: 朝刊折込部数 | I4: 未購読部数 | J4: 第2金曜日 | K4: 第4金曜日
A5: 四日市市 | D5: 240110Z01260 | E5: 四日市あかつきNM | F5: 8900 | H5: 3200 | I5: =F5-H5 -> 5700 | J5: ○
A6: =SUM(G48) -> 0 | B6: ／ | C6: =SUM(F48) -> 111600 | D6: 240110Z01010 | E6: 富田(生川)NS | F6: 10000 | H6: 3650 | I6: 6350 | J6: ○
D7: 240110Z01240 | E7: 四日市羽津NS | F7: 6650 | H7: 2350 | I7: 4300 | J7: ○
D8: 240110Z01340 | E8: 四日市あがたNMI | F8: 2950 | H8: 1350 | I8: 1600 | J8: ○
D9: 240110Z01040 | E9: 四日市保々NMSI | F9: 5150 | H9: 2550 | I9: 2600 | J9: ○ | K9: ※1
D10: 240110Z01280 | E10: 四日市橋北NSI | F10: 4500 | H10: 1800 | I10: 2700 | J10: ○
D11: 240110Z01290 | E11: 阿倉川NSI | F11: 4950 | H11: 1850 | I11: 3100 | J11: ○
D12: 240110Z01230 | E12: 四日市生桑NSI | F12: 4050 | H12: 1750 | I12: 2300 | J12: ○
D13: 240110Z01060 | E13: 三重平NSI | F13: 2450 | H13: 1200 | I13: 1250 | J13: ○
D14: 240110Z01090 | E14: 四日市中央NSI | F14: 8600 | H14: 2650 | I14: 5950 | J14: ○
D15: 240110Z01080 | E15: 四日市常磐NS | F15: 11000 | H15: 2800 | I15: 8200 | J15: ○
D16: 240110Z01160 | E16: 四日市南部NS | F16: 6000 | H16: 2000 | I16: 4000 | J16: ○
D17: 240110Z01120 | E17: 塩浜NI | F17: 5500 | H17: 1700 | I17: 3800 | J17: ○
D18: 240110Z01180 | E18: 四日市笹川NS | F18: 5900 | H18: 1800 | I18: 4100 | J18: ○
D19: 240110Z01270 | E19: 四日市波木NS | F19: 2850 | H19: 1200 | I19: 1650 | J19: ○
D20: 240110Z01140 | E20: 四日市内部NSI | F20: 4400 | H20: 1750 | I20: 2650 | J20: ○
D21: 240110Z01170 | E21: 四日市西部NAMSI | F21: 4350 | H21: 1950 | I21: 2400 | J21: ○
D22: 240110Z01220 | E22: 四日市川島NMSI | F22: 5350 | H22: 2700 | I22: 2650 | J22: ○
D23: 240110Z01190 | E23: 四日市桜NMI | F23: 4450 | H23: 1950 | I23: 2500 | J23: ○
D24: 240110Z01320 | E24: 三重楠 | F24: 3600 | H24: 1550 | I24: 2050 | J24: ○
E48: =CONCATENATE(FIXED(COUNTA(E5:E47),0,0)," 店") -> 20 店 | F48: =SUM(F5:F47) -> 111600 | G48: =SUM(G5:G47) -> 0 | H48: =SUM(H5:H47) -> 41750 | I48: =SUM(I5:I47) -> 69850
A49: 2025年後期（9月1日以降） | K49: ㈱中日総合サービス
K50: ※1・・・第4週の全域配布部数は員弁郡東員町エリア分（1,000枚）の実施のみとなります。

Sheet 三重郡・亀山市・鈴鹿市
A1: 折込日 | E1: 広告主 | H1: サイズ
E2: チラシ銘柄 | H2: 部数 | I2: =SUM(A28,A17,A6) -> 0
E3: ※2025年8月は第4金曜日のみ,12月は第2金曜日のみの実施となります。
A4: 地区 | D4: 店名 | F4: 折込プラス部ス | G4: 依頼部数 | H4: 朝刊折込部数 | I4: 未購読部数 | J4: 第2金曜日 | K4: 第4金曜日
A5: 三重郡 | D5: 240150Z01070 | E5: 伊勢朝日NM | F5: 3100 | H5: 1550 | I5: =F5-H5 -> 1550 | J5: ○
A6: =SUM(G14) -> 0 | B6: ／ | C6: =SUM(F14) -> 20300 | D6: 240150Z01040 | E6: 菰野NAMI | F6: 6250 | H6: 3650 | I6: 2600 | J6: ○
D7: 240150Z01030 | E7: 菰野朝上NAMSI | F7: 2600 | H7: 1400 | I7: 1200 | J7: ○
D8: 240150Z01050 | E8: 鵜川原NM | F8: 2350 | H8: 1300 | I8: 1050 | J8: ○
D9: 240150Z01090 | E9: 川越南NS | F9: 3000 | H9: 900 | I9: 2100 | J9: ○
D10: 240150Z01080 | E10: 川越北NMS | F10: 3000 | H10: 950 | I10: 2050 | J10: ○
E14: =CONCATENATE(FIXED(COUNTA(E5:E13),0,0)," 店") -> 6 店 | F14: =SUM(F5:F13) -> 20300 | G14: =SUM(G5:G13) -> 0 | H14: =SUM(H5:H13) -> 9750 | I14: =SUM(I5:I13) -> 10550
A16: 亀山市 | D16: 240205Z01010 | E16: 亀山中央NMSI | F16: 3300 | H16: 1600 | I16: =F16-H16 -> 1700 | J16: ○
A17: =SUM(G25) -> 0 | B17: ／ | C17: =SUM(F25) -> 14550 | D17: 240205Z01070 | E17: 亀山南部NMSI | F17: 3750 | H17: 1550 | I17: 2200 | J17: ○
D18: 240205Z01040 | E18: 亀山北部NMSI | F18: 5400 | H18: 2250 | I18: 3150 | J18: ○
D19: 240205Z01030 | E19: 下ノ庄NAMSI | F19: 950 | H19: 600 | I19: 350 | J19: ○
D20: 240205Z01060 | E20: 加太NAMSI | F20: 250 | H20: 250 | I20: 0
D21: 240205Z01080 | E21: 亀山関NMSI | F21: 900 | H21: 800 | I21: 100 | J21: ○
E25: =CONCATENATE(FIXED(COUNTA(E16:E24),0,0)," 店") -> 6 店 | F25: =SUM(F16:F24) -> 14550 | G25: =SUM(G16:G24) -> 0 | H25: =SUM(H16:H24) -> 7050 | I25: =SUM(I16:I24) -> 7500
A27: 鈴鹿市 | D27: 240210Z01010 | E27: 長太の浦NMSI | F27: 4000 | H27: 1550 | I27: =F27-H27 -> 2450 | J27: ○
A28: =SUM(G48) -> 0 | B28: ／ | C28: =SUM(F48) -> 71050 | D28: 240210Z01030 | E28: 伊勢若松NMSI | F28: 5200 | H28: 2000 | I28: 3200 | J28: ○
D29: 240210Z01040 | E29: 白子NMSI | F29: 7650 | H29: 2750 | I29: 4900 | J29: ○
D30: 240210Z01160 | E30: 鈴鹿旭が丘NMSI | F30: 5100 | H30: 1700 | I30: 3400 | J30: ○
D31: 240210Z01050 | E31: 鈴鹿磯山NMSI | F31: 3300 | H31: 1350 | I31: 1950 | J31: ○
D32: 240210Z01060 | E32: 鈴鹿栄NSI | F32: 2300 | H32: 1200 | I32: 1100 | J32: ○
D33: 240210Z01070 | E33: いせ神戸北部NMSI | F33: 5700 | H33: 2400 | I33: 3300 | J33: ○
D34: 240210Z01080 | E34: いせ神戸南部NMSI | F34: 4450 | H34: 1600 | I34: 2850 | J34: ○
D35: 240210Z01100 | E35: 鈴鹿桜島NMSI | F35: 7600 | H35: 2250 | I35: =F35-H35 -> 5350 | J35: ○
D36: 240210Z01110 | E36: 鈴鹿平田NSI | F36: 13500 | H36: 3850 | I36: =F36-H36 -> 9650 | J36: ○
D37: 240210Z01120 | E37: 加佐登N | F37: 4500 | H37: 1950 | I37: =F37-H37 -> 2550 | J37: ○
D38: 240210Z01130 | E38: 鈴峰NMSI | F38: 4350 | H38: 1950 | I38: =F38-H38 -> 2400 | J38: ○
D39: 240210Z01140 | E39: 鈴鹿国府NSI | F39: 3400 | H39: 1150 | I39: =F39-H39 -> 2250 | J39: ○
E48: =CONCATENATE(FIXED(COUNTA(E27:E47),0,0)," 店") -> 13 店 | F48: =SUM(F27:F47) -> 71050 | G48: =SUM(G27:G47) -> 0 | H48: =SUM(H27:H47) -> 25700 | I48: =SUM(I27:I47) -> 45350
A49: 2025年後期（9月1日以降） | K49: ㈱中日総合サービス

Sheet 津市
A1: 折込日 | E1: 広告主 | H1: サイズ
E2: チラシ銘柄 | H2: 部数 | I2: =SUM(A6) -> 0
E3: ※2025年8月は第4金曜日のみ,12月は第2金曜日のみの実施となります。
A4: 地区 | D4: 店名 | F4: 折込プラス部ス | G4: 依頼部数 | H4: 朝刊折込部数 | I4: 未購読部数 | J4: 第2金曜日 | K4: 第4金曜日
A5: 津市 | D5: 240220Z01010 | E5: 津白塚NAMSI | F5: 4000 | H5: 1950 | I5: =F5-H5 -> 2050 | J5: ○
A6: =SUM(G48) -> 0 | B6: ／ | C6: =SUM(F48) -> 85950 | D6: 240220Z01030 | E6: 津一身田NAMSI | F6: 6200 | H6: 3000 | I6: 3200 | J6: ○
D7: 240220Z01080 | E7: 津高野尾NAMSI | F7: 2000 | H7: 1350 | I7: 650 | J7: ○
D8: 240220Z01040 | E8: 津(大光堂)SI | F8: 5550 | H8: 2850 | I8: 2700 | J8: ○
D9: 240220Z01045 | E9: 津新町SI | F9: 5600 | H9: 2000 | I9: 3600 | J9: ○
D10: 240220Z01310 | E10: 津橋北MSI | F10: 5200 | H10: 1950 | I10: 3250 | J10: ○
D11: 240220Z01050 | E11: 津西が丘SI | F11: 4350 | H11: 1900 | I11: 2450 | J11: ○
D12: 240220Z01060 | E12: 津橋南SI | F12: 7400 | H12: 3150 | I12: 4250 | J12: ○
D13: 240220Z01070 | E13: 津南が丘SI | F13: 2750 | H13: 1250 | I13: 1500 | J13: ○
D14: 240220Z01100 | E14: 津安濃NAMSI | F14: 2550 | H14: 1750 | I14: 800 | J14: ○
D15: 240220Z01290 | E15: 津片田東NAMSI | F15: 2050 | H15: 2050 | I15: 0
D16: 240220Z01300 | E16: 津片田西NAMSI | F16: 1400 | H16: 1400 | I16: 0
D17: 240220Z01120 | E17: 津高茶屋NMS | F17: 6200 | H17: 2150 | I17: 4050 | J17: ○
D18: 240220Z01130 | E18: 津雲出NAMSI | F18: 2600 | H18: 1600 | I18: 1000 | J18: ○
D19: 240220Z01140 | E19: 久居東部NS | F19: 4150 | H19: 1650 | I19: 2500 | J19: ○
D20: 240220Z01150 | E20: 久居NS | F20: 3300 | H20: 1050 | I20: 2250 | J20: ○
D21: 240220Z01160 | E21: 久居西部NS | F21: 2300 | H21: 900 | I21: 1400 | J21: ○
D22: 240220Z01170 | E22: 久居南部NS | F22: 3300 | H22: 1300 | I22: 2000 | J22: ○
D23: 240220Z01180 | E23: 榊原NAMSI | F23: 400 | H23: 400 | I23: 0
D24: 240220Z01190 | E24: 千里ヶ丘NAMSI | F24: 2500 | H24: 1550 | I24: 950 | J24: ○
D25: 240220Z01200 | E25: 豊津上野NAMSI | F25: 3400 | H25: 2100 | I25: 1300 | J25: ○
D26: 240220Z01210 | E26: 椋本NAMSI | F26: 1000 | H26: 1000 | I26: 0
D27: 240220Z01220 | E27: 北神山NAMSI | F27: 600 | H27: 600 | I27: 0
D28: 240220Z01230 | E28: 津 一志NAMSI | F28: 3000 | H28: 2650 | I28: 350 | J28: ○
D29: 240220Z01240 | E29: 白山NAMSI | F29: 2250 | H29: 2250 | I29: 0
D30: 240220Z01250 | E30: 家城NAMI | F30: 450 | H30: 450 | I30: 0
D31: 240220Z01260 | E31: 伊勢竹原NAMYSI | F31: 300 | H31: 300 | I31: 0
D32: 240220Z01270 | E32: 八知NAMYSI | F32: 600 | H32: 600 | I32: 0
D33: 240220Z01280 | E33: 奥津NAMYSI | F33: 550 | H33: 550 | I33: 0
E48: =CONCATENATE(FIXED(COUNTA(E5:E47),0,0)," 店") -> 29 店 | F48: =SUM(F5:F47) -> 85950 | G48: =SUM(G5:G47) -> 0 | H48: =SUM(H5:H47) -> 45700 | I48: =SUM(I5:I47) -> 40250
A49: 2025年後期（9月1日以降） | K49: ㈱中日総合サービス

Sheet 松阪市・多気郡
A1: 折込日 | E1: 広告主 | H1: サイズ
E2: チラシ銘柄 | H2: 部数 | I2: =SUM(A6,A34) -> 0
E3: ※2025年8月は第4金曜日のみ,12月は第2金曜日のみの実施となります。
A4: 地区 | D4: 店名 | F4: 折込プラス部ス | G4: 依頼部数 | H4: 朝刊折込部数 | I4: 未購読部数 | J4: 第2金曜日 | K4: 第4金曜日
A5: 松阪市 | D5: 240230Z01010 | E5: 松阪中央NSI | F5: 1750 | H5: 1750 | I5: =F5-H5 -> 0
A6: =SUM(G31) -> 0 | B6: ／ | C6: =SUM(F31) -> 20900 | D6: 240230Z01040 | E6: 松阪大黒田NSI | F6: 1650 | H6: 1650 | I6: 0
D7: 240230Z01100 | E7: 松阪川井町NSI | F7: 1200 | H7: 1200 | I7: 0
D8: 240230Z01080 | E8: 松阪鎌田NSI | F8: 1050 | H8: 1050 | I8: 0
D9: 240230Z01070 | E9: 松阪大平NSI | F9: 1800 | H9: 1800 | I9: 0
D10: 240230Z01030 | E10: 松阪まえのへたNSI | F10: 1650 | H10: 1650 | I10: 0
D11: 240230Z01090 | E11: 松阪桜町NSI | F11: 1600 | H11: 1600 | I11: 0
D12: 240230Z01110 | E12: 松阪徳和NMSI | F12: 1050 | H12: 1050 | I12: 0
D13: 240230Z01020 | E13: 松阪櫛田NMSI | F13: 1250 | H13: 1250 | I13: 0
D14: 240230Z01050 | E14: 松阪片野橋NAMSI | F14: 1300 | H14: 1300 | I14: 0
D15: 240230Z01130 | E15: 六軒NMSI | F15: 2450 | H15: 2450 | I15: 0
D16: 240230Z01160 | E16: 伊勢中川NASI | F16: 2250 | H16: 2250 | I16: 0
D17: 240230Z01140 | E17: 柿野NS | F17: 850 | H17: 850 | I17: 0
D18: 240230Z01150 | E18: 飯高NAMSI | F18: 1050 | H18: 1050 | I18: 0
E31: =CONCATENATE(FIXED(COUNTA(E5:E30),0,0)," 店") -> 14 店 | F31: =SUM(F5:F30) -> 20900 | G31: =SUM(G5:G30) -> 0 | H31: =SUM(H5:H30) -> 20900 | I31: =SUM(I5:I30) -> 0
A33: 多気郡 | D33: 240250Z01010 | E33: 相可NAMSI | F33: 1550 | H33: 1550 | I33: =F33-H33 -> 0
A34: =SUM(G48) -> 0 | B34: ／ | C34: =SUM(F48) -> 6050 | D34: 240250Z01040 | E34: 明和NS | F34: 1800 | H34: 1800 | I34: =F34-H34 -> 0
D35: 240250Z01020 | E35: 三瀬谷NAMSI | F35: 800 | H35: 800 | I35: =F35-H35 -> 0
D36: 240250Z01030 | E36: 大台宮川NAMSI | F36: 700 | H36: 700 | I36: =F36-H36 -> 0
D37: 240250Z01050 | E37: 栃原NAMSI | F37: 1200 | H37: 1200 | I37: =F37-H37 -> 0
E48: =CONCATENATE(FIXED(COUNTA(E33:E47),0,0)," 店") -> 5 店 | F48: =SUM(F33:F47) -> 6050 | G48: =SUM(G33:G47)+伊勢市・度会郡!G19 -> 0 | H48: =SUM(H33:H47) -> 6050 | I48: =SUM(I33:I47)+伊勢市・度会郡!I19 -> 0
A49: 2025年後期（9月1日以降） | K49: ㈱中日総合サービス

Sheet 伊勢市・度会郡
A1: 折込日 | E1: 広告主 | H1: サイズ
E2: チラシ銘柄 | H2: 部数 | I2: =SUM(A6,A29) -> 0
E3: ※2025年8月は第4金曜日のみ,12月は第2金曜日のみの実施となります。
A4: 地区 | D4: 店名 | F4: 折込プラス部ス | G4: 依頼部数 | H4: 朝刊折込部数 | I4: 未購読部数 | J4: 第2金曜日 | K4: 第4金曜日
A5: 伊勢市 | D5: 240305Z01010 | E5: 伊勢市駅前NS | F5: 1700 | H5: 1700 | I5: =F5-H5 -> 0
A6: =SUM(G26) -> 0 | B6: ／ | C6: =SUM(F26) -> 20500 | D6: 240305Z01030 | E6: 伊勢市厚生NS | F6: 1550 | H6: 1550 | I6: 0
D7: 240305Z01040 | E7: 伊勢市中央NS | F7: 1700 | H7: 1700 | I7: 0
D8: 240305Z01080 | E8: 伊勢市北部NS | F8: 1450 | H8: 1450 | I8: 0
D9: 240305Z01060 | E9: 伊勢市西部NS | F9: 1550 | H9: 1550 | I9: 0
D10: 240305Z01070 | E10: 伊勢市南部NS | F10: 2300 | H10: 2300 | I10: 0
D11: 240305Z01110 | E11: 三重小俣NSI | F11: 2650 | H11: 2650 | I11: 0
D12: 240305Z01130 | E12: 伊勢市東部NS | F12: 1350 | H12: 1350 | I12: 0
D13: 240305Z01090 | E13: 大淀NSI | F13: 2100 | H13: 2100 | I13: 0
D14: 240305Z01100 | E14: 田丸NI | F14: 2300 | H14: 2300 | I14: 0
D15: 240305Z01120 | E15: わたらいNAMSI | F15: 1850 | H15: 1850 | I15: 0
E26: =CONCATENATE(FIXED(COUNTA(E5:E18),0,0)," 店") -> 11 店 | F26: =SUM(F5:F18) -> 20500 | G26: =SUM(G5:G18) -> 0 | H26: =SUM(H5:H18) -> 20500 | I26: =SUM(I5:I18) -> 0
A28: 度会郡 | D28: 240354Z01020 | E28: 滝原NAMSI | F28: 400 | H28: 400 | I28: =F28-H28 -> 0
A29: =SUM(G48) -> 0 | B29: ／ | C29: =SUM(F48) -> 5450 | D29: 240354Z01030 | E29: 阿曽NAMI | F29: 200 | H29: 200 | I29: 0
D30: 240354Z01040 | E30: 大内山NAMSI | F30: 300 | H30: 300 | I30: 0
D31: 240354Z01050 | E31: 柏崎NAMSI | F31: 450 | H31: 450 | I31: 0
D32: 240355Z01060 | E32: 大紀町錦AMSI | F32: 350 | H32: 350 | I32: 0
D33: 240355Z01090 | E33: 三重中島NAMSI | F33: 350 | H33: 350 | I33: 0
D34: 240355Z01105 | E34: 慥柄AMI | F34: 100 | H34: 100 | I34: 0
D35: 240355Z01100 | E35: 贄NAMI | F35: 200 | H35: 200 | I35: 0
D36: 240355Z01110 | E36: 東宮AMSI | F36: 250 | H36: 250 | I36: 0
D37: 240355Z01120 | E37: 吉津(神前)NAMSI | F37: 450 | H37: 450 | I37: 0
D38: 240355Z01130 | E38: 島津(古和)NAMSI | F38: 250 | H38: 250 | I38: 0
D39: 240355Z01140 | E39: 南勢町東NAMSI | F39: 1000 | H39: 1000 | I39: 0
D40: 240355Z01150 | E40: 南勢町西NAMSI | F40: 1150 | H40: 1150 | I40: 0
E48: =CONCATENATE(FIXED(COUNTA(E28:E47),0,0)," 店") -> 13 店 | F48: =SUM(F28:F47) -> 5450 | G48: =SUM(G28:G47) -> 0 | H48: =SUM(H28:H47) -> 5450 | I48: =SUM(I28:I47) -> 0
A49: 2025年後期（9月1日以降） | K49: ㈱中日総合サービス

Sheet 鳥羽市・志摩市・尾鷲市
A1: 折込日 | E1: 広告主 | H1: サイズ
E2: チラシ銘柄 | H2: 部数 | I2: =SUM(A6,A19,A36) -> 0
E3: ※2025年8月は第4金曜日のみ,12月は第2金曜日のみの実施となります。
A4: 地区 | D4: 店名 | F4: 折込プラス部ス | G4: 依頼部数 | H4: 朝刊折込部数 | I4: 未購読部数 | J4: 第2金曜日 | K4: 第4金曜日
A5: 鳥羽市 | D5: 240340Z01010 | E5: 鳥羽NAMSI | F5: 1350 | H5: 1350 | I5: =F5-H5 -> 0
A6: =SUM(G16) -> 0 | B6: ／ | C6: =SUM(F16) -> 3200 | D6: 240340Z01020 | E6: 鳥羽南部NAMSI | F6: 1850 | H6: 1850 | I6: =F6-H6 -> 0
E16: =CONCATENATE(FIXED(COUNTA(E5:E15),0,0)," 店") -> 2 店 | F16: =SUM(F5:F15) -> 3200 | G16: =SUM(G5:G15) -> 0 | H16: =SUM(H5:H15) -> 3200 | I16: =SUM(I5:I15) -> 0
A18: 志摩市 | D18: 240349Z01010 | E18: 磯部NAMSI | F18: 1600 | H18: 1600 | I18: =F18-H18 -> 0
A19: =SUM(G33) -> 0 | B19: ／ | C19: =SUM(F33) -> 9000 | D19: 240349Z01020 | E19: 鵜方NAMSI | F19: 4700 | H19: 4700 | I19: =F19-H19 -> 0
D20: 240350Z01060 | E20: 浜島NAMSI | F20: 950 | H20: 950 | I20: =F20-H20 -> 0
D21: 240350Z01050 | E21: 和具NAMSI | F21: 1750 | H21: 1750 | I21: =F21-H21 -> 0
E33: =CONCATENATE(FIXED(COUNTA(E18:E32),0,0)," 店") -> 4 店 | F33: =SUM(F18:F32) -> 9000 | G33: =SUM(G18:G32) -> 0 | H33: =SUM(H18:H32) -> 9000 | I33: =SUM(I18:I32) -> 0
A35: 尾鷲市 | D35: 240345Z01010 | E35: 尾鷲NAMSI | F35: 2800 | H35: 2800 | I35: =F35-H35 -> 0
A36: =SUM(G48) -> 0 | B36: ／ | C36: =SUM(F48) -> 3650 | D36: 240345Z01020 | E36: 九鬼NAMI | F36: 200 | H36: 200 | I36: =F36-H36 -> 0
D37: 240345Z01030 | E37: 三木里NAMSI | F37: 350 | H37: 350 | I37: =F37-H37 -> 0
D38: 240345Z01040 | E38: 賀田NAMSI | F38: 300 | H38: 300 | I38: =F38-H38 -> 0
E48: =CONCATENATE(FIXED(COUNTA(E35:E47),0,0)," 店") -> 4 店 | F48: =SUM(F35:F47) -> 3650 | G48: =SUM(G35:G47) -> 0 | H48: =SUM(H35:H47) -> 3650 | I48: =SUM(I35:I47) -> 0
A49: 2025年後期（9月1日以降） | K49: ㈱中日総合サービス

Sheet 熊野市・北牟婁郡・南牟婁郡
A1: 折込日 | E1: 広告主 | H1: サイズ
E2: チラシ銘柄 | H2: 部数 | I2: =SUM(A6,A20,A37) -> 0
E3: ※2025年8月は第4金曜日のみ,12月は第2金曜日のみの実施となります。
A4: 地区 | D4: 店名 | F4: 折込プラス部ス | G4: 依頼部数 | H4: 朝刊折込部数 | I4: 未購読部数 | J4: 第2金曜日 | K4: 第4金曜日
A5: 熊野市 | D5: 240320Z01010 | E5: 熊野 | F5: 1000 | H5: 1000 | I5: =F5-H5 -> 0
A6: =SUM(G17) -> 0 | B6: ／ | C6: =SUM(F17) -> 3450 | D6: 240320Z01030 | E6: 御浜・熊野南部AMSI | F6: 2350 | H6: 2350 | I6: =F6-H6 -> 0
D7: 240320Z01020 | E7: 二木島NAMSI | F7: 100 | H7: 100 | I7: =F7-H7 -> 0
E17: =CONCATENATE(FIXED(COUNTA(E5:E16),0,0)," 店") -> 3 店 | F17: =SUM(F5:F16) -> 3450 | G17: =SUM(G5:G16) -> 0 | H17: =SUM(H5:H16) -> 3450 | I17: =SUM(I5:I16) -> 0
A19: 北牟婁郡 | D19: 240360Z01010 | E19: 紀伊長島NAMSI | F19: 2100 | H19: 2100 | I19: =F19-H19 -> 0
A20: =SUM(G34) -> 0 | B20: ／ | C20: =SUM(F34) -> 4550 | D20: 240360Z01030 | E20: 島勝AMSI | F20: 350 | H20: 350 | I20: =F20-H20 -> 0
D21: 240360Z01020 | E21: 白浦M | F21: 250 | H21: 250 | I21: =F21-H21 -> 0
D22: 240360Z01050 | E22: 相賀NAMSI | F22: 1250 | H22: 1250 | I22: =F22-H22 -> 0
D23: 240360Z01060 | E23: 引本NAMI | F23: 600 | H23: 600 | I23: =F23-H23 -> 0
E34: =CONCATENATE(FIXED(COUNTA(E19:E33),0,0)," 店") -> 5 店 | F34: =SUM(F19:F33) -> 4550 | G34: =SUM(G19:G33) -> 0 | H34: =SUM(H19:H33) -> 4550 | I34: =SUM(I19:I33) -> 0
A36: 南牟婁郡 | D36: 240365Z03040 | E36: 鵜殿AMS | F36: 1450 | H36: 1450 | I36: =F36-H36 -> 0
A37: =SUM(G48) -> 0 | B37: ／ | C37: =SUM(F48) -> 2200 | D37: 240365Z01005 | E37: 井田 | F37: 50 | H37: 50 | I37: =F37-H37 -> 0
D38: 240365Z01007 | E38: 井田上野 | F38: 50 | H38: 50 | I38: =F38-H38 -> 0
D39: 240365Z03050 | E39: 成川紀宝AMS | F39: 650 | H39: 650 | I39: =F39-H39 -> 0
E48: =CONCATENATE(FIXED(COUNTA(E36:E47),0,0)," 店") -> 4 店 | F48: =SUM(F36:F47) -> 2200 | G48: =SUM(G36:G47) -> 0 | H48: =SUM(H36:H47) -> 2200 | I48: =SUM(I36:I47) -> 0
A49: 2025年後期（9月1日以降） | K49: ㈱中日総合サービス

Sheet 伊賀市・名張市・新宮市
A1: 折込日 | E1: 広告主 | H1: サイズ
E2: チラシ銘柄 | H2: 部数 | I2: =SUM(A6,A23,A35) -> 0
E3: ※2025年8月は第4金曜日のみ,12月は第2金曜日のみの実施となります。
A4: 地区 | D4: 店名 | F4: 折込プラス部ス | G4: 依頼部数 | H4: 朝刊折込部数 | I4: 未購読部数 | J4: 第2金曜日 | K4: 第4金曜日
A5: 伊賀市 | D5: 240310Z01010 | E5: 伊賀上野I | F5: 1600 | H5: 1600 | I5: =F5-H5 -> 0
A6: =SUM(G20) -> 0 | B6: ／ | C6: =SUM(F20) -> 8600 | D6: 240310Z01020 | E6: 伊賀上野北部 | F6: 1000 | H6: 1000 | I6: 0
D7: 240330Z01070 | E7: 諏訪丸柱I | F7: 100 | H7: 100 | I7: 0
D8: 240330Z01030 | E8: 新堂NAMSI | F8: 500 | H8: 500 | I8: 0
D9: 240310Z01040 | E9: 依那古AMSI | F9: 350 | H9: 350 | I9: 0
D10: 240310Z01070 | E10: 伊賀神戸AMSI | F10: 500 | H10: 500 | I10: 0
D11: 240310Z02050 | E11: 島ヶ原AMSI | F11: 350 | H11: 350 | I11: 0
D12: 240330Z01020 | E12: 阿山柘植AMSI | F12: 1400 | H12: 1400 | I12: 0
D13: 240330Z01050 | E13: 伊賀山田AMSI | F13: 1200 | H13: 1200 | I13: 0
D14: 240330Z02010 | E14: 青山町AMSI | F14: 1600 | H14: 1600 | I14: 0
E20: =CONCATENATE(FIXED(COUNTA(E5:E19),0,0)," 店") -> 10 店 | F20: =SUM(F5:F19) -> 8600 | G20: =SUM(G5:G19) -> 0 | H20: =SUM(H5:H19) -> 8600 | I20: =SUM(I5:I19) -> 0
A22: 名張市 | D22: 240315Z01030 | E22: 桔梗ヶ丘・美旗・古山 | F22: 450 | H22: 450 | I22: =F22-H22 -> 0
A23: =SUM(G32) -> 0 | B23: ／ | C23: =SUM(F32) -> 1700 | D23: 240315Z01010 | E23: 名張・上野南部 | F23: 850 | H23: 850 | I23: =F23-H23 -> 0
D24: 240315Z01020 | E24: 名張東部 | F24: 400 | H24: 400 | I24: =F24-H24 -> 0
E32: =CONCATENATE(FIXED(COUNTA(E22:E31),0,0)," 店") -> 3 店 | F32: =SUM(F22:F31) -> 1700 | G32: =SUM(G22:G31) -> 0 | H32: =SUM(H22:H31) -> 1700 | I32: =SUM(I22:I31) -> 0
A34: 新宮市 | D34: 240325Z01010 | E34: 新宮 | F34: 350 | H34: 350 | I34: =F34-H34 -> 0
A35: =SUM(G48) -> 0 | B35: ／ | C35: =SUM(F48) -> 350
E48: =CONCATENATE(FIXED(COUNTA(E34:E47),0,0)," 店") -> 1 店 | F48: =SUM(F34:F47) -> 350 | G48: =SUM(G34:G47) -> 0 | H48: =SUM(H34:H47) -> 350 | I48: =SUM(I34:I47) -> 0
A49: 2025年後期（9月1日以降） | K49: ㈱中日総合サービス
